bitfinex-derivatives/quotes_BNBF0:USTF0_20250417
["timestamp","ask_amount","ask_price","bid_price","bid_amount"]
[1744910373786,0.2989901,593.05,592.4,1.263]
[1744910373992,0.2989901,593.07,592.4,1.263]
[1744910377794,0.80422263,593.08,592.4,1.263]
[1744910377995,0.29905063,593.07,592.4,1.263]
[1744910378294,0.337234,593.06,592.4,1.263]
[1744910378489,0.29905063,593.05,592.4,1.263]
[1744910378690,0.33724537,593.04,592.4,1.263]
[1744910378893,0.29905063,593.03,592.4,1.263]
[1744910379094,0.33725675,593.02,592.4,1.263]
[1744910379290,0.29905063,593.01,592.4,1.263]
[1744910379498,0.33726812,593.0,592.4,1.263]
[1744910379709,0.29905063,592.99,592.4,1.263]
[1744910382697,0.33726812,593.0,592.4,1.263]
[1744910382898,0.29913089,592.99,592.4,1.263]
[1744910384600,0.611,592.98,592.4,1.263]
[1744910384900,0.29913089,592.97,592.4,1.263]
[1744910386004,0.611,592.98,592.4,1.263]
[1744910395803,0.29908126,592.97,592.4,1.263]
[1744910401914,0.29898443,592.96,592.4,1.263]
[1744910402114,0.29898443,592.97,592.4,1.263]
[1744910406621,0.611,592.98,592.4,1.263]
[1744910406917,0.29879033,592.97,592.4,1.263]
[1744910408213,0.611,592.98,592.4,1.263]
[1744910408418,0.29880264,592.97,592.4,1.263]
[1744910411618,0.611,592.98,592.4,1.263]
[1744910411815,0.29878677,592.97,592.4,1.263]
[1744910412118,0.29878677,592.96,592.4,1.263]
[1744910412315,0.29878677,592.95,592.4,1.263]
[1744910412518,0.29878677,592.94,592.4,1.263]
[1744910412719,0.29878677,592.93,592.4,1.263]
[1744910412921,0.29878677,592.92,592.4,1.263]
[1744910413116,0.29878677,592.91,592.4,1.263]
[1744910413321,0.29878677,593.34,592.4,1.263]
[1744910413521,0.29878677,593.33,592.4,1.263]
[1744910413722,0.29878677,593.32,592.4,1.263]
[1744910414022,0.29878677,593.31,592.4,1.263]
[1744910414216,0.29878677,593.3,592.4,1.263]
[1744910414420,0.29878677,593.29,592.4,1.263]
[1744910414621,0.29878677,593.28,592.4,1.263]
[1744910414816,0.29878677,593.27,592.4,1.263]
[1744910415015,0.29878677,593.26,592.4,1.263]
[1744910415218,0.29872543,593.25,592.4,1.263]
[1744910415419,0.29872543,593.24,592.4,1.263]
[1744910415717,0.29872543,593.23,592.4,1.263]
[1744910415920,0.29872543,593.22,592.4,1.263]
[1744910416116,0.29872543,593.21,592.4,1.263]
[1744910416316,0.29872543,593.2,592.4,1.263]
[1744910416518,1.28765456,593.23,592.4,1.263]
[1744910416920,0.29872811,593.22,592.4,1.263]
[1744910417121,0.29872811,593.21,592.4,1.263]
[1744910417323,0.59244361,593.22,592.4,1.263]
[1744910417520,0.29872811,593.21,592.4,1.263]
[1744910417720,0.29872811,593.2,592.4,1.263]
[1744910417922,0.29872811,593.19,592.4,1.263]
[1744910418122,0.29872811,593.21,592.4,1.263]
[1744910418319,0.29872811,593.18,592.4,1.263]
[1744910418623,0.29872811,593.17,592.4,1.263]
[1744910418918,0.29872811,593.16,592.4,1.263]
[1744910419124,0.29872811,593.15,592.4,1.263]
[1744910419324,1.58137006,593.22,592.4,1.263]
[1744910421126,0.29872089,593.21,592.4,1.263]
[1744910422021,0.29872351,593.2,592.4,1.263]
[1744910422526,1.28765456,593.23,592.4,1.263]
[1744910422527,0.29872351,593.19,592.4,1.263]
[1744910422826,0.29872351,593.18,592.4,1.263]
[1744910423022,0.29872351,593.17,592.4,1.263]
[1744910423227,1.28765456,592.99,592.4,1.263]
[1744910423422,0.29872351,592.98,592.4,1.263]
[1744910424727,1.58637807,592.98,592.4,1.263]
[1744910424923,0.6360087,592.97,592.4,1.263]
[1744910425121,0.33729087,592.96,592.4,1.263]
[1744910425320,0.29872184,592.95,592.4,1.263]
[1744910425522,0.33730225,592.94,592.4,1.263]
[1744910425828,0.29872184,592.93,592.4,1.263]
[1744910426128,0.63602978,592.93,592.4,1.263]
[1744910426322,0.29872184,592.92,592.4,1.263]
[1744910426819,0.33730794,592.93,592.4,1.263]
[1744910426820,0.29871967,592.91,592.4,1.263]
[1744910427026,0.29871967,592.9,592.4,1.263]
[1744910427222,0.29871967,592.89,592.4,1.263]
[1744910427522,0.29871967,592.88,592.4,1.263]
[1744910427824,0.29871967,592.87,592.4,1.263]
[1744910428027,0.29871967,592.92,592.4,1.263]
[1744910428228,0.29871967,592.91,592.4,1.263]
[1744910428421,0.29871967,592.9,592.4,1.263]
[1744910428622,0.29871967,592.92,592.4,1.263]
[1744910433437,0.6360333,592.92,592.4,1.263]
[1744910433632,0.63603899,592.91,592.4,1.263]
[1744910433832,0.63604468,592.9,592.4,1.263]
[1744910434134,0.63605037,592.89,592.4,1.263]
[1744910434329,0.29871967,592.88,592.4,1.263]
[1744910439731,0.3373307,592.89,592.4,1.263]
[1744910439937,0.29849284,592.88,592.4,1.263]
[1744910440337,0.57,592.87,592.4,1.263]
[1744910440537,0.29849284,592.86,592.4,1.263]
[1744910440836,0.29849284,592.86,590.91,1.06767964]
[1744910441037,0.29849284,592.86,590.93,0.33844956]
[1744910441239,0.29849284,592.86,590.94,0.31034526]
[1744910441438,0.29849284,592.86,590.96,0.33843238]
[1744910441635,0.29849284,592.86,590.97,0.31034526]
[1744910441838,0.29849284,592.86,590.99,0.3384152]
[1744910442137,0.29849284,592.86,591.0,0.31034526]
[1744910442334,0.29849284,592.86,591.02,0.33839802]
[1744910442539,0.29849284,592.86,591.03,0.31034526]
[1744910442739,0.29849284,592.86,591.05,0.33838084]
[1744910442935,0.29849284,592.86,591.06,0.31034526]
[1744910443141,0.29849284,592.86,591.08,0.33836367]
[1744910443341,0.29849284,592.86,591.09,0.31034526]
[1744910443542,0.29849284,592.86,591.11,0.3383465]
[1744910443842,0.29849284,592.86,591.12,0.31034526]
[1744910444042,0.29849284,592.86,591.14,0.33832932]
[1744910444241,0.33734777,592.86,591.15,0.31034526]
[1744910444444,0.33734777,592.86,591.17,0.33831216]
[1744910444742,0.33734777,592.86,591.18,0.31036405]
[1744910445042,0.33734777,592.86,591.2,0.33829499]
[1744910445343,0.33734777,592.86,591.21,0.31036405]
[1744910445539,0.33734777,592.86,591.23,0.33827782]
[1744910445742,0.33734777,592.86,591.24,0.31036405]
[1744910445943,0.33734777,592.86,591.26,0.33826066]
[1744910446144,0.33734777,592.86,591.27,0.31036405]
[1744910446337,0.33734777,592.86,591.29,0.3382435]
[1744910446542,0.33734777,592.86,591.3,0.31036496]
[1744910446742,0.33734777,592.86,591.32,0.33822634]
[1744910446941,0.33734777,592.86,591.33,0.31036496]
[1744910447142,0.33734777,592.86,591.35,0.33820918]
[1744910453042,0.29877295,592.85,591.36,0.31036163]
[1744910453247,0.29877295,592.85,591.38,0.33819202]
[1744910453448,0.29877295,592.85,591.39,0.31036163]
[1744910453748,0.29877295,592.85,591.41,0.33817487]
[1744910453948,0.29877295,592.85,591.42,0.31036163]
[1744910454150,0.29877295,592.85,591.44,0.33815771]
[1744910454449,0.29873821,592.84,591.45,0.31036216]
[1744910454749,0.29873821,592.83,591.46,0.33814628]
[1744910454944,0.29873821,592.85,591.47,0.31036216]
[1744910455249,0.29873821,592.85,591.48,0.33813484]
[1744910455451,0.29873821,592.85,591.49,0.31036216]
[1744910455650,0.29873821,592.85,591.5,0.33812341]
[1744910455850,0.29873821,592.85,591.51,0.31036216]
[1744910456049,0.29873821,592.85,591.52,0.33811198]
[1744910456247,0.29873821,592.85,591.53,0.31036216]
[1744910456552,0.29873821,592.85,591.54,0.33810055]
[1744910456749,0.29873821,592.85,591.55,0.31036216]
[1744910456947,0.29873821,592.85,591.56,0.33808912]
[1744910457151,0.29873821,592.85,591.57,0.31036216]
[1744910457350,0.29873821,592.85,591.58,0.33807769]
[1744910458349,0.33734777,592.86,591.58,0.33807769]
[1744910465154,0.29855954,592.85,591.58,0.33807769]
[1744910465359,0.59252439,592.85,591.58,0.33807769]
[1744910465559,0.63591869,592.84,591.58,0.33807769]
[1744910465859,0.63592438,592.83,591.58,0.32819557]
[1744910466060,0.29855954,592.82,591.58,0.32819557]
[1744910467661,0.29855954,592.82,591.59,0.539]
[1744910467858,0.29399465,592.81,591.59,0.539]
[1744910468054,0.29855954,592.8,591.59,0.539]
[1744910468662,0.3373876,592.79,591.59,0.539]
[1744910468860,0.29855954,592.78,591.59,0.539]
[1744910469960,0.3373876,592.79,591.59,0.539]
[1744910470160,0.29797535,592.78,591.59,0.539]
[1744910472964,0.688,592.77,591.59,0.539]
[1744910473262,0.63538003,592.76,591.59,0.539]
[1744910473461,0.63538572,592.75,591.59,0.539]
[1744910473658,0.63539141,592.74,591.59,0.539]
[1744910473856,0.63539711,592.73,591.59,0.539]
[1744910474063,0.29797535,592.72,591.59,0.539]
[1744910474462,0.33743314,592.71,591.59,0.539]
[1744910474664,0.29797535,592.7,591.59,0.539]
[1744910477366,0.33744453,592.69,591.59,0.539]
[1744910477663,0.29797535,592.68,591.59,0.539]
[1744910477866,0.33745591,592.67,591.59,0.539]
[1744910478167,0.29797535,592.66,591.59,0.539]
[1744910478865,0.3374673,592.65,591.59,0.539]
[1744910479070,0.29797535,592.64,591.59,0.539]
[1744910479269,0.33747869,592.63,591.59,0.539]
[1744910479470,0.29797535,592.62,591.59,0.539]
[1744910479671,0.63544375,592.61,591.59,0.539]
[1744910479872,0.63544945,592.6,591.59,0.539]
[1744910480069,0.63545514,592.59,591.59,0.539]
[1744910480271,0.688,592.77,591.59,0.539]
[1744910480272,0.63546084,592.58,591.59,0.539]
[1744910480572,0.63546653,592.57,591.59,0.539]
[1744910480767,0.29795367,592.56,591.59,0.539]
[1744910480972,0.63547223,592.56,591.59,0.539]
[1744910481166,0.29795367,592.55,591.59,0.539]
[1744910481366,0.33752995,592.54,591.59,0.539]
[1744910481565,0.29795367,592.53,591.59,0.539]
[1744910481771,0.63548932,592.53,591.59,0.539]
[1744910481973,0.29795367,592.52,591.59,0.539]
[1744910484477,0.2979511,592.51,591.59,0.539]
[1744910484676,0.2979511,592.52,591.59,0.539]
[1744910484877,0.2979511,592.52,591.58,0.32819557]
[1744910487576,0.33753565,592.53,591.58,0.32819557]
[1744910487778,0.29787032,592.52,591.39,0.29403191]
[1744910488172,0.522,592.51,591.39,0.29403191]
[1744910488373,0.29787032,592.5,591.39,0.29403191]
[1744910488572,0.29787032,592.5,591.4,0.547]
[1744910488773,0.522,592.51,591.4,0.547]
[1744910489072,0.63542284,592.5,591.4,0.547]
[1744910489279,0.63542853,592.49,591.4,0.547]
[1744910489477,0.2978701,592.48,591.4,0.547]
[1744910489674,0.63543423,592.48,591.4,0.547]
[1744910489873,0.2978701,592.47,591.4,0.547]
[1744910490880,0.33756413,592.48,591.4,0.547]
[1744910491079,0.29786089,592.47,591.4,0.547]
[1744910494081,0.33756413,592.48,591.4,0.547]
[1744910494276,0.29804834,592.46,591.4,0.547]
[1744910494481,0.29804834,592.45,591.4,0.547]
[1744910494779,0.29804834,592.44,591.4,1.174]
[1744910494976,0.29804834,592.43,591.4,1.174]
[1744910495181,0.29804834,592.47,591.4,1.174]
[1744910495381,0.29804834,592.46,591.4,1.174]
[1744910495681,0.29804834,592.45,591.4,1.834]
[1744910495882,0.29804834,592.44,591.4,1.834]
[1744910496082,0.29804834,592.43,591.4,1.834]
[1744910496275,0.29804834,592.47,591.4,1.834]
[1744910496575,0.29804834,592.46,591.4,1.834]
[1744910496776,0.33756413,592.48,591.4,1.834]
[1744910496777,0.29804834,592.47,591.4,1.834]
[1744910497277,0.33756413,592.48,591.4,1.834]
[1744910497481,0.29823814,592.47,591.4,1.834]
[1744910497678,0.33756413,592.48,591.41,0.33817487]
[1744910497977,0.29823373,592.47,591.41,0.33817487]
[1744910498884,0.33756413,592.48,591.41,0.33817487]
[1744910499079,0.2981994,592.46,591.41,0.33817487]
[1744910499280,0.33756413,592.48,591.41,0.33817487]
[1744910499481,0.29819991,592.47,591.41,0.33817487]
[1744910500484,0.33756413,592.48,591.41,0.33817487]
[1744910500679,0.29819429,592.47,591.41,0.33817487]
[1744910503686,0.33756413,592.48,591.41,0.33817487]
[1744910503884,0.29821203,592.47,591.41,0.33817487]
[1744910507990,0.33756413,592.48,591.41,0.33817487]
[1744910508590,0.33756413,592.48,591.42,0.31044062]
[1744910508790,0.33756413,592.48,591.43,0.33816343]
[1744910509989,0.33756413,592.48,591.43,1.04016343]
[1744910510992,0.29826807,592.47,591.44,0.31044327]
[1744910511292,0.29826807,592.47,591.43,1.04016343]
[1744910511492,0.29826807,592.47,591.44,0.33815771]
[1744910511989,0.29826807,592.47,591.45,0.31044678]
[1744910512595,0.29826807,592.47,591.46,0.33814628]
[1744910518403,0.29838345,592.46,591.46,0.33814628]
[1744910518598,0.29838345,592.47,591.46,0.33814628]
[1744910518800,0.29838345,592.46,591.46,0.33814628]
[1744910519002,0.29838345,592.47,591.46,0.33814628]
[1744910519303,0.29838345,592.46,591.46,0.33814628]
[1744910519503,0.29838345,592.47,591.46,0.33814628]
[1744910519703,0.29838345,592.46,591.46,0.33814628]
[1744910519899,0.84738345,592.46,591.46,0.33814628]
[1744910520104,0.29838345,592.45,591.46,0.33814628]
[1744910521001,0.549,592.46,591.46,0.33814628]
[1744910521201,0.29839579,592.45,591.46,0.33814628]
[1744910523907,0.549,592.46,591.46,0.33814628]
[1744910524105,0.29842289,592.45,591.47,0.31044076]
[1744910524306,0.29842289,592.45,591.48,0.33813484]
[1744910525610,0.53895682,592.46,591.48,0.33813484]
[1744910526404,0.29887152,592.45,591.49,0.31043575]
[1744910527105,0.29887152,592.45,591.49,0.64856488]
[1744910527310,0.29887152,592.45,591.5,0.31043575]
[1744910528803,0.29887152,592.45,591.49,0.33812913]
[1744910529405,0.29887152,592.45,591.5,0.693]
[1744910531811,0.53895682,592.46,591.5,0.693]
[1744910532011,0.29878972,592.45,591.5,0.693]
[1744910537514,0.29878972,592.45,591.51,0.602]
[1744910537815,0.53895682,592.46,591.51,0.602]
[1744910538422,0.87653235,592.46,591.51,0.602]
[1744910539116,0.33758123,592.45,591.51,0.602]
[1744910539417,0.29881639,592.44,591.51,0.602]
[1744910539619,0.33759262,592.43,591.51,0.602]
[1744910540018,0.29883069,592.42,591.51,0.602]
[1744910540316,0.33760402,592.41,591.51,0.602]
[1744910540519,0.29883069,592.4,591.51,0.602]
[1744910540817,0.33761542,592.39,591.51,0.602]
[1744910541020,0.29883069,592.38,591.51,0.602]
[1744910541219,0.33762682,592.37,591.51,0.602]
[1744910541413,0.29883759,592.36,591.51,0.602]
[1744910544518,0.33762682,592.37,591.51,0.602]
[1744910544713,0.29894413,592.36,591.51,0.602]
[1744910546218,0.29891987,592.35,591.51,0.602]
[1744910546519,0.29891987,592.34,591.51,0.602]
[1744910546721,0.29891987,592.36,591.51,0.602]
[1744910546920,0.29891987,592.35,591.51,0.602]
[1744910547117,0.29891987,592.36,591.51,0.602]
[1744910553227,0.29891987,592.36,591.52,0.65]
[1744910553625,0.33762682,592.37,591.52,0.65]
[1744910553824,0.29889955,592.36,591.52,0.65]
[1744910559031,0.29890298,592.35,591.52,0.65]
[1744910559232,0.29890298,592.36,591.52,0.65]
[1744910559429,0.33762682,592.37,591.52,0.65]
[1744910559629,0.29890396,592.36,591.52,0.65]
[1744910560430,0.33762682,592.37,591.52,0.65]
[1744910560735,0.29890841,592.36,591.52,0.65]
[1744910562239,0.33762682,592.37,591.52,0.65]
[1744910562433,0.29897269,592.36,591.52,0.65]
[1744910563640,0.33762682,592.37,591.52,0.65]
[1744910563939,0.29900197,592.36,591.52,0.65]
[1744910568441,0.33762682,592.37,591.52,0.65]
[1744910568740,0.29907359,592.36,591.52,0.65]
[1744910569841,0.29907359,592.36,591.52,1.144]
[1744910571743,0.33762682,592.37,591.52,1.144]
[1744910572044,0.29904759,592.36,591.52,1.144]
[1744910576642,0.2990543,592.35,591.52,1.144]
[1744910576946,0.2990543,592.34,591.52,1.144]
[1744910577246,0.2990543,592.33,591.52,1.144]
[1744910577446,0.2990543,592.36,591.52,1.144]
[1744910577649,0.2990543,592.35,591.52,1.144]
[1744910577849,0.2990543,592.34,591.52,1.144]
[1744910578046,0.2990543,592.36,591.52,1.144]
[1744910578252,0.2990543,592.35,591.52,1.144]
[1744910578452,0.2990543,592.36,591.52,1.144]
[1744910578653,0.2990543,592.35,591.52,1.144]
[1744910578849,0.2990543,592.36,591.52,1.144]
[1744910587456,0.33762682,592.37,591.52,1.144]
[1744910587658,0.29898295,592.36,591.52,1.144]
[1744910589157,0.33762682,592.37,591.52,1.144]
[1744910589353,0.29898181,592.36,591.52,1.144]
[1744910589658,0.29898181,592.36,591.52,1.672]
[1744910595664,0.33762682,592.37,591.52,1.672]
[1744910595963,0.29898732,592.36,591.52,1.672]
[1744910597263,0.33762682,592.37,591.52,1.672]
[1744910597463,0.29900133,592.36,591.52,1.672]
[1744910597865,0.33762682,592.37,591.52,1.672]
[1744910601170,0.596,592.36,591.52,1.672]
[1744910612181,0.33762682,592.37,591.52,1.672]
[1744910612882,0.29916531,592.36,591.52,1.672]
[1744910615283,0.33762682,592.37,591.52,1.672]
[1744910615480,0.29916491,592.36,591.52,1.672]
[1744910615677,0.33762682,592.37,591.52,1.672]
[1744910615876,0.573,592.35,591.52,1.672]
[1744910625695,0.29933234,592.34,591.52,1.672]
[1744910626596,0.573,592.35,591.52,1.672]
[1744910626797,0.29935026,592.34,591.52,1.672]
[1744910628194,0.573,592.35,591.52,1.672]
[1744910628399,0.29935416,592.34,591.52,1.672]
[1744910629899,0.29935857,592.33,591.52,1.672]
[1744910630100,0.29935857,592.34,591.52,1.672]
[1744910630302,0.573,592.35,591.52,1.672]
[1744910630599,0.29934486,592.34,591.52,1.672]
[1744910631399,0.573,592.35,591.52,1.672]
[1744910631597,0.29934287,592.34,591.52,1.672]
[1744910632195,0.29934287,592.36,591.52,1.672]
[1744910632394,0.29934287,592.35,591.52,1.672]
[1744910632597,0.29934287,592.36,591.52,1.672]
[1744910632798,0.29934287,592.35,591.52,1.672]
[1744910632999,0.29936022,592.34,591.52,1.672]
[1744910633205,0.29936022,592.33,591.52,1.672]
[1744910633404,0.29936022,592.32,591.52,1.672]
[1744910633599,0.29936022,592.36,591.52,1.672]
[1744910633903,0.33762682,592.37,591.52,1.672]
[1744910633904,0.29936022,592.35,591.52,1.672]
[1744910634103,0.29936022,592.36,591.52,1.672]
[1744910634299,0.29936022,592.35,591.52,1.672]
[1744910634502,0.33762682,592.37,591.52,1.672]
[1744910634702,0.29936014,592.36,591.52,1.672]
[1744910635805,0.45,592.35,591.52,1.672]
[1744910636100,0.29936014,592.34,591.52,1.672]
[1744910637002,0.45,592.35,591.52,1.672]
[1744910639105,0.45,592.35,591.53,0.33810626]
[1744910641707,0.45,592.35,591.53,0.76610626]
[1744910642408,0.45,592.35,591.53,1.31010626]
[1744910642808,0.45,592.35,591.53,1.86710626]
[1744910661716,0.45,592.35,591.54,0.3103749]
[1744910661921,0.45,592.35,591.55,0.33809483]
[1744910662918,1.28765456,593.45,591.56,0.31037556]
[1744910663122,0.33702374,593.43,591.57,0.3380834]
[1744910663323,0.29930322,593.42,591.57,0.3380834]
[1744910663624,0.33704078,593.4,591.57,0.3380834]
[1744910663825,0.29930322,593.39,591.57,0.3380834]
[1744910664018,0.33705782,593.37,591.57,0.3380834]
[1744910664218,0.29930322,593.36,591.57,0.3380834]
[1744910664524,0.33707486,593.34,591.57,0.3380834]
[1744910664718,0.29930588,593.33,591.57,0.3380834]
[1744910664920,0.3370919,593.31,591.57,0.3380834]
[1744910665125,0.29930588,593.3,591.57,0.3380834]
[1744910665425,0.33710895,593.28,591.58,0.592]
[1744910665624,0.29930588,593.27,591.58,1.57807769]
[1744910665824,0.337126,593.25,591.59,0.31037793]
[1744910666026,0.337126,593.25,591.58,1.57807769]
[1744910666327,0.29930579,593.24,591.59,0.31037981]
[1744910666627,0.33714304,593.22,591.59,0.31037981]
[1744910666929,0.29930579,593.21,591.59,0.31037981]
[1744910667225,0.29930579,593.2,591.59,0.31037981]
[1744910667425,0.63646589,593.19,591.59,0.31037981]
[1744910667620,0.29930579,593.18,591.59,0.31037981]
[1744910667821,0.29930579,593.17,591.59,0.31037981]
[1744910668123,0.29930579,593.16,591.59,0.31037981]
[1744910668321,0.29930579,593.15,591.59,0.31037981]
[1744910668523,0.3371942,593.13,591.59,0.31037981]
[1744910668724,0.29930579,593.12,591.59,0.31037981]
[1744910669021,0.33721126,593.1,591.59,0.31037981]
[1744910669220,0.29930579,593.09,591.59,0.31037981]
[1744910669525,0.33722832,593.07,591.6,0.454]
[1744910669719,0.29930579,593.06,591.61,0.31037981]
[1744910669922,0.33724537,593.04,591.61,0.31037981]
[1744910670223,0.29930579,593.03,591.61,0.31037981]
[1744910670423,0.33726244,593.01,591.61,0.31037981]
[1744910670624,0.29930579,593.0,591.61,0.31037981]
[1744910670821,0.6365796,592.99,591.61,0.31037981]
[1744910671020,0.29930579,592.98,591.61,0.31037981]
[1744910671328,0.63659098,592.97,591.61,0.31037981]
[1744910671521,0.63659666,592.96,591.61,0.31037981]
[1744910671722,0.33729656,592.95,591.61,0.31037981]
[1744910671921,0.29930579,592.94,591.61,0.31037981]
[1744910672125,0.63661373,592.93,591.61,0.31037981]
[1744910672325,0.63661942,592.92,591.61,0.31037981]
[1744910672520,0.63662511,592.91,591.61,0.31037981]
[1744910672826,0.6366308,592.9,591.61,0.31037981]
[1744910673024,0.63663649,592.89,591.61,0.31037981]
[1744910673222,0.33733639,592.88,591.61,0.31037981]
[1744910673422,0.29930579,592.87,591.61,0.31037981]
[1744910673628,0.63665356,592.86,591.61,0.31037981]
[1744910673929,0.63665925,592.85,591.61,0.31037981]
[1744910674128,0.63666494,592.84,591.61,0.31037981]
[1744910674330,0.63667063,592.83,591.61,0.31037981]
[1744910674630,0.63667632,592.82,591.61,0.31037981]
[1744910674930,0.29930579,592.81,591.61,0.31037981]
[1744910677432,0.29930421,592.8,591.62,0.31037638]
[1744910677635,0.29930421,592.81,591.62,0.33805483]
[1744910677831,0.29930421,592.8,591.63,0.64842549]
[1744910678033,0.33737053,592.82,591.6,0.454]
[1744910678034,0.29930421,592.81,591.64,0.64841978]
[1744910678330,0.29930421,592.8,591.65,0.31037638]
[1744910678631,0.29930421,592.79,591.65,0.31037638]
[1744910678831,0.33737053,592.82,591.65,0.31037638]
[1744910678832,0.29930421,592.81,591.66,0.33803197]
[1744910679034,0.29930421,592.78,591.66,0.33803197]
[1744910679234,0.29930421,592.77,591.67,0.31037638]
[1744910679434,0.29930421,592.81,591.67,0.31037638]
[1744910684637,0.29930421,592.81,591.66,0.33803197]
[1744910685436,0.33737053,592.82,591.66,0.33803197]
[1744910685637,0.29928023,592.81,591.66,0.33803197]
[1744910687037,0.33737053,592.82,591.66,0.33803197]
[1744910687337,0.29925272,592.81,591.67,0.31032429]
[1744910687532,0.29925272,592.81,591.67,0.33802626]
[1744910688038,0.29925272,592.81,591.68,0.31031174]
[1744910688234,0.29925272,592.81,591.69,0.33801483]
[1744910690338,0.687,592.8,591.69,0.33801483]
[1744910690537,0.29925272,592.79,591.69,0.33801483]
[1744910690738,0.29925272,592.79,591.7,0.31031583]
[1744910690939,0.29925272,592.79,591.71,0.33800341]
[1744910691139,0.29925272,592.79,591.72,0.31031583]
[1744910691439,0.29925272,592.79,591.72,0.64831353]
[1744910691638,0.29925272,592.79,591.73,0.31031583]
[1744910691838,0.687,592.8,591.72,0.3379977]
[1744910692035,0.29924475,592.79,591.73,0.31031658]
[1744910696236,0.29924475,592.79,591.74,0.62]
[1744910696436,0.29924475,592.79,591.75,0.31031658]
[1744910696940,0.29925203,592.78,591.76,0.31032389]
[1744910697140,0.29925203,592.79,591.75,0.31032389]
[1744910697340,0.29925203,592.78,591.74,0.62]
[1744910697636,0.29925203,592.77,591.75,0.3103238]
[1744910697840,0.29925203,592.79,591.75,0.3103238]
[1744910698040,0.29925203,592.78,591.75,0.3103238]
[1744910698240,0.29925203,592.79,591.74,0.62]
[1744910698742,0.29925203,592.79,591.75,0.3103244]
[1744910699341,0.29925203,592.79,591.74,0.62]
[1744910699944,0.687,592.8,591.74,0.62]
[1744910700242,0.29924429,592.79,591.74,0.62]
[1744910702840,0.29923951,592.78,591.74,0.62]
[1744910703141,0.29923951,592.77,591.74,0.62]
[1744910703336,0.687,592.8,591.74,0.62]
[1744910703337,0.29923951,592.79,591.74,0.62]
[1744910703537,0.29923951,592.78,591.74,0.62]
[1744910703737,0.29923951,592.79,591.74,0.62]
[1744910705744,0.29923951,592.79,591.75,0.31030907]
[1744910706145,0.29924025,592.78,591.74,0.62]
[1744910706348,0.29924025,592.79,591.74,0.62]
[1744910706548,0.29924025,592.77,591.74,0.62]
[1744910706749,0.29924025,592.76,591.74,0.62]
[1744910707050,0.29924025,592.75,591.74,0.62]
[1744910707245,0.29924025,592.79,591.74,0.62]
[1744910707443,0.29924025,592.79,591.75,0.31031221]
[1744910709251,0.687,592.8,591.74,0.91384819]
[1744910709454,0.29923929,592.79,591.75,0.31031106]
[1744910710654,0.29923929,592.79,591.74,0.62]
[1744910710853,0.29923929,592.79,591.75,0.31032209]
[1744910711254,0.29923929,592.79,591.74,0.62]
[1744910711549,0.29923929,592.79,591.74,0.91386059]
[1744910712249,0.29923929,592.79,591.74,0.29386059]
[1744910715054,0.687,592.8,591.74,0.63184686]
[1744910715255,0.687,592.8,591.75,0.33798056]
[1744910715756,0.687,592.8,591.76,0.649]
[1744910716461,0.33737053,592.82,591.76,0.649]
[1744910716957,0.33737053,592.82,591.77,0.33796914]
[1744910717657,0.33737053,592.82,591.77,0.96796914]
[1744910718153,0.29920632,592.81,591.78,0.31027795]
[1744910718357,0.33737053,592.82,591.78,0.31027795]
[1744910719054,0.29377005,593.17,591.79,0.3102326]
[1744910719259,0.63634138,593.16,591.79,0.3102326]
[1744910719463,0.29916423,593.15,591.79,0.3102326]
[1744910719759,0.29916423,593.15,591.8,0.33795201]
[1744910719955,0.526,593.14,591.8,0.33795201]
[1744910720158,0.29916423,593.13,591.8,0.33795201]
[1744910722157,0.63635843,593.13,591.8,0.33795201]
[1744910722463,0.29916423,593.12,591.8,0.33795201]
[1744910723964,0.3371942,593.13,591.8,0.33795201]
[1744910733867,0.29918985,593.12,591.8,0.33795201]
[1744910734568,0.29918985,593.12,591.8,0.82695201]
[1744910735073,0.33720557,593.11,591.8,0.82695201]
[1744910738874,0.29919767,593.1,591.8,0.82695201]
[1744910739470,0.33721694,593.09,591.8,0.82695201]
[1744910739769,0.29919767,593.08,591.8,0.82695201]
[1744910740074,0.33722832,593.07,591.8,0.82695201]